[Event "*** Titled Tuesday Blitz"]
[Site "Chess.com"]
[Date "2019.09.03"]
[Round "2"]
[White "Kanthecarowin"]
[Black "minnesotachessmaster"]
[Result "1-0"]
[WhiteElo "2370"]
[BlackElo "1927"]
[TimeControl "180+2"]
[EndTime "15:21:25 PDT"]
[Termination "Kanthecarowin won by resignation"]

1. d4 {[%clk 0:03:01.9]} 1... Nc6 {[%clk 0:02:59]} 2. c4 {[%clk 0:03:02.7]} 2...
d5 {[%clk 0:02:58.8]} 3. cxd5 {[%clk 0:03:02.9]} 3... Qxd5 {[%clk 0:02:59.1]} 4.
Nf3 {[%clk 0:03:04.6]} 4... Bg4 {[%clk 0:02:59.1]} 5. Nc3 {[%clk 0:03:04.2]}
5... Qa5 {[%clk 0:02:57.8]} 6. e3 {[%clk 0:03:04.3]} 6... e5 {[%clk 0:02:53.6]}
7. dxe5 {[%clk 0:02:40.3]} 7... Nxe5 {[%clk 0:02:49.9]} 8. Be2 {[%clk
0:02:39.8]} 8... Nxf3+ {[%clk 0:02:19.7]} 9. Bxf3 {[%clk 0:02:27.4]} 9... Bxf3
{[%clk 0:02:19.5]} 10. Qxf3 {[%clk 0:02:27.4]} 10... O-O-O {[%clk 0:02:20.3]}
11. O-O {[%clk 0:02:25]} 11... Nf6 {[%clk 0:02:19.9]} 12. e4 {[%clk 0:02:19.6]}
12... Bd6 {[%clk 0:02:16.8]} 13. Be3 {[%clk 0:02:18.5]} 13... Rhe8 {[%clk
0:02:11.6]} 14. Rfd1 {[%clk 0:02:16.5]} 14... Qe5 {[%clk 0:02:07]} 15. g3 {[%clk
0:02:04.3]} 15... Nxe4 {[%clk 0:02:06.2]} 16. Nxe4 {[%clk 0:02:05]} 16... Qxe4
{[%clk 0:02:06.6]} 17. Qxf7 {[%clk 0:02:04.2]} 17... Re7 {[%clk 0:01:59.2]} 18.
Qb3 {[%clk 0:01:54.7]} 18... h5 {[%clk 0:01:52.3]} 19. Bg5 {[%clk 0:01:39.2]}
19... Red7 {[%clk 0:01:24.4]} 20. Bxd8 {[%clk 0:01:38.3]} 20... Rxd8 {[%clk
0:01:25.3]} 21. Re1 {[%clk 0:01:38.2]} 21... Qf5 {[%clk 0:01:16.1]} 22. Qe6+
{[%clk 0:01:35.5]} 22... Qxe6 {[%clk 0:01:16.9]} 23. Rxe6 {[%clk 0:01:37.4]}
23... Bc5 {[%clk 0:01:17.7]} 24. Re2 {[%clk 0:01:36.7]} 24... h4 {[%clk
0:01:13.9]} 25. Rc1 {[%clk 0:01:35.9]} 25... Bb6 {[%clk 0:01:13.9]} 26. Kg2
{[%clk 0:01:35.6]} 26... hxg3 {[%clk 0:01:13.7]} 27. hxg3 {[%clk 0:01:37.5]}
27... a5 {[%clk 0:01:10.5]} 28. Rcc2 {[%clk 0:01:37.2]} 28... Kb8 {[%clk
0:01:10.8]} 29. b3 {[%clk 0:01:37.1]} 29... Ka7 {[%clk 0:01:11.4]} 30. Re7
{[%clk 0:01:37.2]} 30... g5 {[%clk 0:01:10.9]} 31. Re5 {[%clk 0:01:37.4]} 31...
g4 {[%clk 0:01:09.7]} 32. Re4 {[%clk 0:01:38.6]} 32... Rg8 {[%clk 0:01:00.2]}
33. b4 {[%clk 0:01:35.9]} 33... axb4 {[%clk 0:00:56.2]} 34. Rxb4 {[%clk
0:01:37.8]} 34... Rg5 {[%clk 0:00:35.3]} 35. Ra4+ {[%clk 0:01:35.6]} 35... Kb8
{[%clk 0:00:34.1]} 36. Rcc4 {[%clk 0:01:36.8]} 36... Rf5 {[%clk 0:00:34]} 37.
Rf4 {[%clk 0:01:37.3]} 1-0

[Event "*** Titled Tuesday Blitz"]
[Site "Chess.com"]
[Date "2019.09.03"]
[Round "2"]
[White "TigranLPetrosyan"]
[Black "iLuusions"]
[Result "1-0"]
[WhiteElo "2924"]
[BlackElo "2625"]
[TimeControl "180+2"]
[EndTime "15:21:30 PDT"]
[Termination "TigranLPetrosyan won by resignation"]

1. Nf3 {[%clk 0:03:01.9]} 1... Nf6 {[%clk 0:03:00.4]} 2. g3 {[%clk 0:03:03.8]}
2... d5 {[%clk 0:03:01.2]} 3. Bg2 {[%clk 0:03:05.7]} 3... c6 {[%clk 0:03:02.4]}
4. c4 {[%clk 0:03:07.3]} 4... dxc4 {[%clk 0:02:57.2]} 5. O-O {[%clk 0:03:07.1]}
5... Nbd7 {[%clk 0:02:51.7]} 6. Na3 {[%clk 0:03:07.2]} 6... Nb6 {[%clk
0:02:52.8]} 7. Qc2 {[%clk 0:03:04.2]} 7... Qd5 {[%clk 0:02:46.6]} 8. b3 {[%clk
0:02:59.9]} 8... cxb3 {[%clk 0:02:37.7]} 9. axb3 {[%clk 0:03:01.8]} 9... g6
{[%clk 0:02:28]} 10. Nc4 {[%clk 0:03:02.7]} 10... Nxc4 {[%clk 0:02:18]} 11. bxc4
{[%clk 0:03:04.6]} 11... Qf5 {[%clk 0:02:14.3]} 12. d3 {[%clk 0:02:48]} 12...
Bg7 {[%clk 0:02:14.9]} 13. Be3 {[%clk 0:01:56.8]} 13... O-O {[%clk 0:01:47.4]}
14. Rxa7 {[%clk 0:01:56.1]} 14... Rxa7 {[%clk 0:01:47.3]} 15. Bxa7 {[%clk
0:01:58]} 15... e5 {[%clk 0:01:44.4]} 16. Nd2 {[%clk 0:01:52.2]} 16... Qh5
{[%clk 0:01:42.8]} 17. Ne4 {[%clk 0:01:43.2]} 17... Nxe4 {[%clk 0:01:28.9]} 18.
Bxe4 {[%clk 0:01:45.1]} 18... f5 {[%clk 0:01:27.4]} 19. Bf3 {[%clk 0:01:44.8]}
19... Qg5 {[%clk 0:01:26.6]} 20. Be3 {[%clk 0:01:31.6]} 20... f4 {[%clk
0:01:26]} 21. Bb6 {[%clk 0:01:31.1]} 21... h5 {[%clk 0:01:24.4]} 22. h4 {[%clk
0:01:31.5]} 22... Qf5 {[%clk 0:01:22.3]} 23. Rd1 {[%clk 0:01:19.7]} 23... fxg3
{[%clk 0:01:15.4]} 24. fxg3 {[%clk 0:01:21.6]} 24... g5 {[%clk 0:01:16.9]} 25.
hxg5 {[%clk 0:01:15.2]} 25... Qxg5 {[%clk 0:01:15.9]} 26. Bf2 {[%clk 0:01:16.6]}
26... h4 {[%clk 0:01:12.8]} 27. Qd2 {[%clk 0:01:17.7]} 27... Qg6 {[%clk
0:01:09.2]} 28. Kg2 {[%clk 0:01:10.6]} 28... Bh6 {[%clk 0:01:09.6]} 29. Qa5
{[%clk 0:01:10.8]} 29... Bf4 {[%clk 0:01:09]} 30. Rg1 {[%clk 0:01:08.8]} 30...
hxg3 {[%clk 0:01:01.8]} 31. Bc5 {[%clk 0:01:09.5]} 31... Rf7 {[%clk 0:00:51.3]}
32. Qd8+ {[%clk 0:01:09.2]} 1-0

[Event "*** Titled Tuesday Blitz"]
[Site "Chess.com"]
[Date "2019.09.03"]
[Round "2"]
[White "MartinMatthiesen"]
[Black "babero_gordo"]
[Result "1-0"]
[WhiteElo "2437"]
[BlackElo "2187"]
[TimeControl "180+2"]
[EndTime "15:21:37 PDT"]
[Termination "MartinMatthiesen won by resignation"]

1. d4 {[%clk 0:03:01.9]} 1... Nf6 {[%clk 0:02:59.7]} 2. c4 {[%clk 0:03:01.8]}
2... e6 {[%clk 0:03:00.7]} 3. Nf3 {[%clk 0:03:02.1]} 3... d5 {[%clk 0:03:01.8]}
4. Nc3 {[%clk 0:03:02.4]} 4... Bb4 {[%clk 0:03:02.2]} 5. e3 {[%clk 0:02:57]}
5... Nbd7 {[%clk 0:03:01.5]} 6. Bd3 {[%clk 0:02:55.1]} 6... c5 {[%clk
0:03:01.1]} 7. O-O {[%clk 0:02:54.6]} 7... O-O {[%clk 0:02:58.1]} 8. a3 {[%clk
0:02:31.9]} 8... Bxc3 {[%clk 0:02:58.1]} 9. bxc3 {[%clk 0:02:31.6]} 9... dxc4
{[%clk 0:02:24.4]} 10. Bxc4 {[%clk 0:02:29.9]} 10... Qa5 {[%clk 0:02:25.4]} 11.
Bb2 {[%clk 0:02:25.6]} 11... b5 {[%clk 0:02:23.2]} 12. Bd3 {[%clk 0:02:24.3]}
12... c4 {[%clk 0:02:23.9]} 13. Bc2 {[%clk 0:02:23.9]} 13... Bb7 {[%clk
0:02:21.7]} 14. Nd2 {[%clk 0:02:18.3]} 14... Nd5 {[%clk 0:02:15.8]} 15. Qe1
{[%clk 0:02:18.6]} 15... N7b6 {[%clk 0:01:50.8]} 16. a4 {[%clk 0:02:08.7]} 16...
b4 {[%clk 0:01:45.2]} 17. cxb4 {[%clk 0:02:04.3]} 17... Nxb4 {[%clk 0:01:36.5]}
18. Ne4 {[%clk 0:01:52]} 18... N6d5 {[%clk 0:01:12.4]} 19. Nc5 {[%clk
0:01:49.6]} 19... Qb6 {[%clk 0:01:10.8]} 20. Be4 {[%clk 0:01:17.2]} 20... Qc7
{[%clk 0:01:00.4]} 21. a5 {[%clk 0:00:56.7]} 21... a6 {[%clk 0:00:58.6]} 22. Ba3
{[%clk 0:00:53.4]} 22... Rfe8 {[%clk 0:00:39.6]} 23. Bxb4 {[%clk 0:00:42.2]}
23... Nxb4 {[%clk 0:00:39.3]} 24. Qxb4 {[%clk 0:00:43.1]} 24... Bxe4 {[%clk
0:00:35.8]} 25. Nxe4 {[%clk 0:00:44]} 25... Rab8 {[%clk 0:00:37.2]} 26. Qc5
{[%clk 0:00:44.7]} 1-0

[Event "*** Titled Tuesday Blitz"]
[Site "Chess.com"]
[Date "2019.09.03"]
[Round "2"]
[White "HrvojeZagreb"]
[Black "becemix"]
[Result "0-1"]
[WhiteElo "2063"]
[BlackElo "2399"]
[TimeControl "180+2"]
[EndTime "15:21:40 PDT"]
[Termination "becemix won by resignation"]

1. d4 {[%clk 0:03:01.9]} 1... Nf6 {[%clk 0:02:55.6]} 2. Bf4 {[%clk 0:03:02.2]}
2... g6 {[%clk 0:02:54.3]} 3. Nc3 {[%clk 0:03:02.4]} 3... Bg7 {[%clk 0:02:55.9]}
4. e4 {[%clk 0:03:03.5]} 4... O-O {[%clk 0:02:57.4]} 5. Qd2 {[%clk 0:03:04.7]}
5... d5 {[%clk 0:02:57]} 6. e5 {[%clk 0:02:57.8]} 6... Ne8 {[%clk 0:02:57.3]} 7.
Bh6 {[%clk 0:02:55.3]} 7... c5 {[%clk 0:02:57]} 8. dxc5 {[%clk 0:02:30.9]} 8...
d4 {[%clk 0:02:53.7]} 9. Bxg7 {[%clk 0:02:10.4]} 9... Nxg7 {[%clk 0:02:51.4]}
10. O-O-O {[%clk 0:02:06.7]} 10... Nc6 {[%clk 0:02:50.9]} 11. Nce2 {[%clk
0:01:55.2]} 11... Ne6 {[%clk 0:02:45.9]} 12. f4 {[%clk 0:01:54.1]} 12... Nxc5
{[%clk 0:02:46.9]} 13. Nxd4 {[%clk 0:01:51.9]} 13... Ne4 {[%clk 0:02:48]} 14.
Qe3 {[%clk 0:01:50.4]} 14... Nxd4 {[%clk 0:02:28.4]} 15. Rxd4 {[%clk 0:01:47]}
15... Qa5 {[%clk 0:02:29]} 16. Qxe4 {[%clk 0:01:11.2]} 16... Bf5 {[%clk
0:02:29.3]} 17. Ra4 {[%clk 0:01:04.5]} 17... Qc7 {[%clk 0:02:22.3]} 18. Qc4
{[%clk 0:01:01.4]} 18... Qb6 {[%clk 0:02:17.2]} 19. Qd4 {[%clk 0:00:17.7]} 19...
Qc7 {[%clk 0:02:00.2]} 20. Rc4 {[%clk 0:00:18.1]} 20... Qa5 {[%clk 0:02:00.6]}
21. a3 {[%clk 0:00:15.8]} 21... Rfd8 {[%clk 0:02:00.5]} 22. Qc3 {[%clk
0:00:16.2]} 22... Qd5 {[%clk 0:02:00.1]} 23. Bd3 {[%clk 0:00:16.3]} 23... Qxg2
{[%clk 0:02:00.9]} 24. Nf3 {[%clk 0:00:13.7]} 24... Qxh1+ {[%clk 0:02:01.6]} 25.
Ne1 {[%clk 0:00:15.1]} 25... Bxd3 {[%clk 0:02:01.5]} 26. cxd3 {[%clk 0:00:16.3]}
26... Qxh2 {[%clk 0:02:02.5]} 27. Kb1 {[%clk 0:00:16.5]} 27... Qe2 {[%clk
0:02:00.6]} 28. Ka2 {[%clk 0:00:16.9]} 28... b5 {[%clk 0:02:00.8]} 29. Rc5
{[%clk 0:00:17.3]} 29... a6 {[%clk 0:02:01.1]} 30. d4 {[%clk 0:00:18.7]} 30...
Qe4 {[%clk 0:01:59.1]} 31. d5 {[%clk 0:00:17.4]} 31... Qxf4 {[%clk 0:01:56.9]}
32. Nd3 {[%clk 0:00:17.8]} 32... Qf3 {[%clk 0:01:56.5]} 33. d6 {[%clk
0:00:16.4]} 33... exd6 {[%clk 0:01:56.7]} 34. Rc7 {[%clk 0:00:14.7]} 34... Qd5+
{[%clk 0:01:55.6]} 35. Ka1 {[%clk 0:00:12.1]} 35... dxe5 {[%clk 0:01:56.5]} 36.
Nxe5 {[%clk 0:00:12.8]} 36... Rf8 {[%clk 0:01:55.3]} 37. Ng4 {[%clk 0:00:12.4]}
37... Qd1+ {[%clk 0:01:56]} 38. Ka2 {[%clk 0:00:13.4]} 38... Qxg4 {[%clk
0:01:57.9]} 0-1

[Event "*** Titled Tuesday Blitz"]
[Site "Chess.com"]
[Date "2019.09.03"]
[Round "2"]
[White "bourideu"]
[Black "Alexandercs432"]
[Result "0-1"]
[WhiteElo "2359"]
[BlackElo "2018"]
[TimeControl "180+2"]
[EndTime "15:21:45 PDT"]
[Termination "Alexandercs432 won on time"]

1. Nf3 {[%clk 0:03:01.9]} 1... d5 {[%clk 0:02:59.7]} 2. e3 {[%clk 0:03:02.1]}
2... Nf6 {[%clk 0:02:58.3]} 3. c4 {[%clk 0:03:03.2]} 3... e6 {[%clk 0:02:51]} 4.
Nc3 {[%clk 0:03:03.4]} 4... Be7 {[%clk 0:02:52.1]} 5. b3 {[%clk 0:03:03.7]} 5...
O-O {[%clk 0:02:52.7]} 6. Bb2 {[%clk 0:03:04.7]} 6... c6 {[%clk 0:02:53.1]} 7.
Qc2 {[%clk 0:03:02.2]} 7... Nbd7 {[%clk 0:02:53.8]} 8. Rg1 {[%clk 0:03:01.5]}
8... Nc5 {[%clk 0:02:28.2]} 9. g4 {[%clk 0:02:46.8]} 9... Nfe4 {[%clk
0:02:22.8]} 10. g5 {[%clk 0:01:25]} 10... Nxc3 {[%clk 0:02:16.7]} 11. Qxc3
{[%clk 0:01:25.5]} 11... f6 {[%clk 0:02:07.3]} 12. cxd5 {[%clk 0:00:49.5]} 12...
cxd5 {[%clk 0:02:01.3]} 13. gxf6 {[%clk 0:00:44.2]} 13... Rxf6 {[%clk
0:01:47.9]} 14. Be2 {[%clk 0:00:27.7]} 14... Rf7 {[%clk 0:01:28.5]} 15. Qc2
{[%clk 0:00:18.1]} 15... Ne4 {[%clk 0:01:19.2]} 16. d3 {[%clk 0:00:14.2]} 16...
Nf6 {[%clk 0:01:18.6]} 17. Ng5 {[%clk 0:00:11.6]} 17... Rf8 {[%clk 0:01:18.2]}
18. f4 {[%clk 0:00:07.7]} 18... Bd7 {[%clk 0:01:15.7]} 19. Bd4 {[%clk
0:00:02.7]} 19... Rc8 {[%clk 0:01:02.7]} 20. Qb2 {[%clk 0:00:03.6]} 20... Qa5+
{[%clk 0:01:01.5]} 21. Kf1 {[%clk 0:00:03.6]} 21... Qc7 {[%clk 0:00:54.1]} 0-1

[Event "*** Titled Tuesday Blitz"]
[Site "Chess.com"]
[Date "2019.09.03"]
[Round "2"]
[White "bascheyaro"]
[Black "rikyshi"]
[Result "0-1"]
[WhiteElo "2681"]
[BlackElo "2221"]
[TimeControl "180+2"]
[EndTime "15:21:58 PDT"]
[Termination "rikyshi won by resignation"]

1. d4 {[%clk 0:02:56.3]} 1... d5 {[%clk 0:02:58.7]} 2. c4 {[%clk 0:02:57.6]}
2... dxc4 {[%clk 0:02:55.8]} 3. Nc3 {[%clk 0:02:58.7]} 3... e5 {[%clk
0:02:55.1]} 4. d5 {[%clk 0:02:59.6]} 4... Nf6 {[%clk 0:02:54.9]} 5. e4 {[%clk
0:03:00.7]} 5... c6 {[%clk 0:02:56]} 6. Bxc4 {[%clk 0:03:00.7]} 6... b5 {[%clk
0:02:56.8]} 7. Bd3 {[%clk 0:03:01.6]} 7... b4 {[%clk 0:02:55.7]} 8. Nce2 {[%clk
0:03:02.1]} 8... cxd5 {[%clk 0:02:57]} 9. exd5 {[%clk 0:02:53.3]} 9... Qxd5
{[%clk 0:02:57.7]} 10. f3 {[%clk 0:02:47.5]} 10... Bc5 {[%clk 0:02:56.3]} 11.
Bg5 {[%clk 0:02:39.7]} 11... Nbd7 {[%clk 0:02:41.4]} 12. Rc1 {[%clk 0:02:27.5]}
12... Be7 {[%clk 0:02:31.7]} 13. Nh3 {[%clk 0:02:23.6]} 13... O-O {[%clk
0:02:30.5]} 14. O-O {[%clk 0:02:24.3]} 14... Nb6 {[%clk 0:02:29.7]} 15. Nf2
{[%clk 0:02:18.5]} 15... Qxa2 {[%clk 0:02:28]} 16. Bxf6 {[%clk 0:01:50.2]} 16...
Bxf6 {[%clk 0:02:27.2]} 17. Ng4 {[%clk 0:01:51]} 17... Bxg4 {[%clk 0:02:25.4]}
18. fxg4 {[%clk 0:01:52.3]} 18... Qxb2 {[%clk 0:02:17.1]} 19. Rb1 {[%clk
0:01:44.2]} 19... Qa2 {[%clk 0:02:16.1]} 20. Rxf6 {[%clk 0:01:36.3]} 20... gxf6
{[%clk 0:02:11.9]} 21. Ng3 {[%clk 0:01:37.4]} 21... Rad8 {[%clk 0:02:04.8]} 22.
Qf3 {[%clk 0:01:38.1]} 22... Qd2 {[%clk 0:01:55.8]} 23. Rd1 {[%clk 0:01:09]}
23... Qf4 {[%clk 0:01:54.7]} 24. Qe2 {[%clk 0:01:10.3]} 24... Nd5 {[%clk
0:01:50.7]} 25. Rd2 {[%clk 0:00:13.6]} 25... Nc3 {[%clk 0:01:46.8]} 26. Qe1
{[%clk 0:00:13.3]} 26... e4 {[%clk 0:01:25.1]} 27. Rf2 {[%clk 0:00:13.5]} 27...
exd3 {[%clk 0:01:15.7]} 28. Rxf4 {[%clk 0:00:14.3]} 28... d2 {[%clk 0:01:17.1]}
29. Qe3 {[%clk 0:00:14.9]} 29... d1=Q+ {[%clk 0:01:17.8]} 30. Rf1 {[%clk
0:00:16.3]} 30... Qd4 {[%clk 0:01:18.7]} 31. Qxd4 {[%clk 0:00:17.7]} 31... Rxd4
{[%clk 0:01:19.9]} 32. Nh5 {[%clk 0:00:19.6]} 32... Rd6 {[%clk 0:01:18.6]} 33.
Nxf6+ {[%clk 0:00:20.1]} 33... Rxf6 {[%clk 0:01:19.9]} 34. Rxf6 {[%clk 0:00:22]}
34... Rb8 {[%clk 0:01:21.2]} 35. Rb6 {[%clk 0:00:22.9]} 35... Rxb6 {[%clk
0:01:21.7]} 0-1

[Event "*** Titled Tuesday Blitz"]
[Site "Chess.com"]
[Date "2019.09.03"]
[Round "2"]
[White "Renier07"]
[Black "guillembaches"]
[Result "1-0"]
[WhiteElo "2597"]
[BlackElo "2303"]
[TimeControl "180+2"]
[EndTime "15:21:58 PDT"]
[Termination "Renier07 won by checkmate"]

1. d4 {[%clk 0:03:01.9]} 1... Nf6 {[%clk 0:03:00.4]} 2. Nf3 {[%clk 0:03:03]}
2... e6 {[%clk 0:03:01.5]} 3. Bf4 {[%clk 0:03:03.1]} 3... d5 {[%clk 0:03:02.6]}
4. e3 {[%clk 0:03:04]} 4... Bd6 {[%clk 0:03:02.5]} 5. Bg3 {[%clk 0:03:05.5]}
5... O-O {[%clk 0:03:02.4]} 6. c4 {[%clk 0:03:06]} 6... b6 {[%clk 0:02:57.3]} 7.
Nc3 {[%clk 0:03:07]} 7... Bb7 {[%clk 0:02:57.4]} 8. Bh4 {[%clk 0:03:07.4]} 8...
Nbd7 {[%clk 0:02:55.2]} 9. cxd5 {[%clk 0:03:07.6]} 9... exd5 {[%clk 0:02:54.7]}
10. Bb5 {[%clk 0:03:08.5]} 10... c6 {[%clk 0:02:54.4]} 11. Bd3 {[%clk
0:03:09.4]} 11... Re8 {[%clk 0:02:47.5]} 12. O-O {[%clk 0:03:10.1]} 12... Nf8
{[%clk 0:02:38.5]} 13. Qc2 {[%clk 0:02:52.5]} 13... Ng6 {[%clk 0:02:31.6]} 14.
Bg3 {[%clk 0:02:53.5]} 14... Bxg3 {[%clk 0:02:23.9]} 15. hxg3 {[%clk 0:02:54.6]}
15... c5 {[%clk 0:02:24.7]} 16. Rad1 {[%clk 0:02:52.8]} 16... Qe7 {[%clk
0:02:10.5]} 17. Rfe1 {[%clk 0:02:47]} 17... Ne4 {[%clk 0:02:04.8]} 18. dxc5
{[%clk 0:02:43.9]} 18... bxc5 {[%clk 0:02:00.8]} 19. Ne2 {[%clk 0:02:19.7]}
19... Rad8 {[%clk 0:01:14.2]} 20. Nf4 {[%clk 0:02:20.4]} 20... Nxf4 {[%clk
0:01:10.4]} 21. gxf4 {[%clk 0:02:18.9]} 21... f6 {[%clk 0:00:48.1]} 22. b3
{[%clk 0:02:12.5]} 22... Kh8 {[%clk 0:00:48]} 23. Rc1 {[%clk 0:02:13]} 23... Rc8
{[%clk 0:00:49]} 24. Red1 {[%clk 0:02:12.8]} 24... Red8 {[%clk 0:00:34.2]} 25.
Bxe4 {[%clk 0:02:04.2]} 25... dxe4 {[%clk 0:00:35.2]} 26. Rxd8+ {[%clk
0:02:05.2]} 26... Rxd8 {[%clk 0:00:35.5]} 27. Nd2 {[%clk 0:01:58.8]} 27... Ba6
{[%clk 0:00:31.8]} 28. Qxe4 {[%clk 0:01:55]} 28... Qf7 {[%clk 0:00:21]} 29. Nf3
{[%clk 0:01:52.2]} 29... Bb7 {[%clk 0:00:21.1]} 30. Qc4 {[%clk 0:01:52.9]} 30...
Qg6 {[%clk 0:00:18.8]} 31. f5 {[%clk 0:01:43.3]} 31... Qxf5 {[%clk 0:00:17.2]}
32. Qxc5 {[%clk 0:01:26.3]} 32... Rd1+ {[%clk 0:00:16]} 33. Kh2 {[%clk
0:01:27.7]} 33... Qg4 {[%clk 0:00:09.2]} 34. Qf8# {[%clk 0:01:25.6]} 1-0

[Event "*** Titled Tuesday Blitz"]
[Site "Chess.com"]
[Date "2019.09.03"]
[Round "2"]
[White "Gattass"]
[Black "Al_Shima"]
[Result "1-0"]
[WhiteElo "2311"]
[BlackElo "2490"]
[TimeControl "180+2"]
[EndTime "15:21:58 PDT"]
[Termination "Gattass won by checkmate"]

1. d4 {[%clk 0:03:01.9]} 1... Nf6 {[%clk 0:02:59.7]} 2. c4 {[%clk 0:03:02.4]}
2... d6 {[%clk 0:02:57]} 3. Nc3 {[%clk 0:03:02.8]} 3... e5 {[%clk 0:02:56.5]} 4.
d5 {[%clk 0:02:56.5]} 4... Be7 {[%clk 0:02:55.8]} 5. e4 {[%clk 0:02:55.8]} 5...
O-O {[%clk 0:02:56.6]} 6. Bd3 {[%clk 0:02:56]} 6... a5 {[%clk 0:02:56.7]} 7. b3
{[%clk 0:02:54.7]} 7... Na6 {[%clk 0:02:57.4]} 8. f3 {[%clk 0:02:48.9]} 8... Nc5
{[%clk 0:02:57.9]} 9. Bc2 {[%clk 0:02:48.6]} 9... Ne8 {[%clk 0:02:52.9]} 10.
Nge2 {[%clk 0:02:39.9]} 10... Bg5 {[%clk 0:02:52.7]} 11. f4 {[%clk 0:02:30.6]}
11... exf4 {[%clk 0:02:51.6]} 12. Nxf4 {[%clk 0:02:32.5]} 12... Qf6 {[%clk
0:02:42.1]} 13. Nfe2 {[%clk 0:02:32.4]} 13... Bg4 {[%clk 0:02:39.8]} 14. Rf1
{[%clk 0:02:22.6]} 14... Qh6 {[%clk 0:02:37.2]} 15. Bxg5 {[%clk 0:02:22.3]}
15... Qxg5 {[%clk 0:02:39.1]} 16. Qd2 {[%clk 0:02:21.9]} 16... Qh4+ {[%clk
0:02:38]} 17. Ng3 {[%clk 0:02:19.4]} 17... Qxh2 {[%clk 0:02:35.3]} 18. Qf4
{[%clk 0:02:17.5]} 18... Qxg2 {[%clk 0:02:32.4]} 19. Rf2 {[%clk 0:01:39.4]}
19... Qg1+ {[%clk 0:02:30.6]} 20. Kd2 {[%clk 0:01:32]} 20... Qxa1 {[%clk
0:02:30.1]} 21. Qxg4 {[%clk 0:01:31.9]} 21... Nd7 {[%clk 0:02:21.6]} 22. e5
{[%clk 0:01:25]} 22... Nxe5 {[%clk 0:02:03.7]} 23. Bxh7+ {[%clk 0:01:22.4]}
23... Kxh7 {[%clk 0:02:02.7]} 24. Qh5+ {[%clk 0:01:21.2]} 24... Kg8 {[%clk
0:02:03.2]} 25. Rh2 {[%clk 0:01:13.3]} 25... Qb2+ {[%clk 0:01:20.9]} 26. Kd1
{[%clk 0:01:12.9]} 26... Qa1+ {[%clk 0:01:19.1]} 27. Kc2 {[%clk 0:01:12.4]}
27... f6 {[%clk 0:01:15.9]} 28. Nf5 {[%clk 0:01:08.8]} 28... Ng6 {[%clk
0:00:38.5]} 29. Qxg6 {[%clk 0:01:01]} 29... Qe1 {[%clk 0:00:39.7]} 30. Nh6+
{[%clk 0:00:58.4]} 30... Kh8 {[%clk 0:00:39.8]} 31. Nf7+ {[%clk 0:00:53.3]}
31... Kg8 {[%clk 0:00:41]} 32. Rh8# {[%clk 0:00:38.5]} 1-0

[Event "*** Titled Tuesday Blitz"]
[Site "Chess.com"]
[Date "2019.09.03"]
[Round "2"]
[White "chessking2151"]
[Black "Jospem"]
[Result "0-1"]
[WhiteElo "2624"]
[BlackElo "2932"]
[TimeControl "180+2"]
[EndTime "15:21:59 PDT"]
[Termination "Jospem won by resignation"]

1. e4 {[%clk 0:03:01.9]} 1... c5 {[%clk 0:03:00.7]} 2. Nf3 {[%clk 0:03:02]} 2...
d6 {[%clk 0:03:02.3]} 3. d4 {[%clk 0:03:02.3]} 3... cxd4 {[%clk 0:03:04.2]} 4.
Nxd4 {[%clk 0:03:04.2]} 4... Nf6 {[%clk 0:03:05.9]} 5. Nc3 {[%clk 0:03:05.5]}
5... a6 {[%clk 0:03:07.6]} 6. h3 {[%clk 0:03:06.8]} 6... e5 {[%clk 0:03:07.7]}
7. Nb3 {[%clk 0:03:06.9]} 7... b5 {[%clk 0:03:04.1]} 8. g4 {[%clk 0:03:06.1]}
8... Bb7 {[%clk 0:03:04.8]} 9. Bg2 {[%clk 0:03:03]} 9... b4 {[%clk 0:03:05.9]}
10. Nd5 {[%clk 0:03:02.1]} 10... Nxd5 {[%clk 0:03:06.9]} 11. exd5 {[%clk
0:03:03.4]} 11... a5 {[%clk 0:03:07.4]} 12. Be3 {[%clk 0:02:56.3]} 12... Be7
{[%clk 0:03:06]} 13. Qd2 {[%clk 0:02:49.2]} 13... O-O {[%clk 0:03:04.2]} 14. h4
{[%clk 0:02:25.4]} 14... Nd7 {[%clk 0:02:57.3]} 15. Nc1 {[%clk 0:02:21.5]} 15...
Ba6 {[%clk 0:02:48.1]} 16. Ne2 {[%clk 0:02:21.1]} 16... Nf6 {[%clk 0:02:44.7]}
17. g5 {[%clk 0:01:58.1]} 17... Ng4 {[%clk 0:02:42.2]} 18. Ng3 {[%clk
0:01:56.6]} 18... Rc8 {[%clk 0:02:28.5]} 19. Be4 {[%clk 0:01:52.8]} 19... g6
{[%clk 0:02:21.7]} 20. O-O-O {[%clk 0:01:49.7]} 20... Bc4 {[%clk 0:02:09.9]} 21.
Kb1 {[%clk 0:01:47.6]} 21... Rb8 {[%clk 0:02:10.1]} 22. h5 {[%clk 0:01:36.5]}
22... a4 {[%clk 0:01:57.7]} 23. b3 {[%clk 0:01:05]} 23... axb3 {[%clk
0:01:58.4]} 24. axb3 {[%clk 0:01:05.3]} 24... Bb5 {[%clk 0:01:59.6]} 25. Kb2
{[%clk 0:00:49.8]} 25... Qc7 {[%clk 0:01:45.9]} 26. Ra1 {[%clk 0:00:36.9]} 26...
Nxe3 {[%clk 0:01:23.8]} 27. Qxe3 {[%clk 0:00:36.2]} 27... Bxg5 {[%clk
0:01:24.1]} 28. Qe1 {[%clk 0:00:18.8]} 28... Rfc8 {[%clk 0:01:15.5]} 29. hxg6
{[%clk 0:00:09.7]} 29... fxg6 {[%clk 0:01:14.3]} 30. Qxb4 {[%clk 0:00:08.9]}
30... Bd3 {[%clk 0:01:09.4]} 31. Qxb8 {[%clk 0:00:07.8]} 31... Qxc2+ {[%clk
0:01:06.1]} 0-1